bitfinex/quotes_SOLUSD_20240920
["timestamp","ask_amount","ask_price","bid_price","bid_amount"]
[1726822334509,0.2535881,151.17,151.15,21.05892928]
[1726822336603,0.2535881,151.17,151.15,22.38180774]
[1726822336785,0.2535881,151.22,151.16,1.32273002]
[1726822336981,0.2535881,151.22,151.19,21.05892928]
[1726822339381,0.2535881,151.22,151.17,21.05892928]
[1726822339687,24.153354,151.21,151.15,21.05892928]
[1726822339893,24.027864,151.21,151.15,21.05892928]
[1726822340079,23.776884,151.21,151.17,21.05892928]
[1726822342301,0.2535881,151.22,151.17,21.05892928]
[1726822345084,0.37647,151.21,151.17,21.05892928]
[1726822345380,24.153354,151.21,151.17,21.05892928]
[1726822346299,24.153354,151.21,151.15,21.05892928]
[1726822346774,24.153354,151.21,151.17,21.05892928]
[1726822346775,24.027864,151.21,151.17,21.05892928]
[1726822349497,0.2535881,151.22,151.19,21.05892928]
[1726822349699,0.2535881,151.22,151.21,21.05892928]
[1726822351183,0.2535881,151.22,151.19,21.05892928]
[1726822352002,0.12549,151.21,151.15,20.0]
[1726822352201,0.25098,151.21,151.15,21.05892928]
[1726822352590,0.12549,151.19,151.15,21.05892928]
[1726822352794,0.25098,151.19,151.15,21.05892928]
[1726822352989,0.2535881,151.22,151.15,21.05892928]
[1726822353184,0.25098,151.21,151.15,21.05892928]
[1726822353384,24.0304721,151.22,151.17,21.05892928]
[1726822353385,0.2535881,151.22,151.17,21.05892928]
[1726822357082,0.2535881,151.22,151.15,21.05892928]
[1726822357286,0.37647,151.21,151.15,21.05892928]
[1726822357515,24.153354,151.21,151.15,21.05892928]
[1726822363201,24.027864,151.21,151.15,21.05892928]
[1726822363403,0.25098,151.21,151.15,21.05892928]
[1726822363908,0.2535881,151.22,151.17,21.05892928]
[1726822367209,40.636054,151.21,151.13,21.05892928]
[1726822368025,40.636054,151.21,151.15,21.05892928]
[1726822369814,40.385074,151.21,151.15,21.05892928]
[1726822371327,24.027864,151.2,151.13,21.05892928]
[1726822371508,0.12549,151.19,151.12,21.05892928]
[1726822375008,24.027864,151.2,151.14,21.05892928]
[1726822378011,24.027864,151.2,151.16,13.46027801]
[1726822378227,23.776884,151.2,151.18,13.46027801]
[1726822378430,16.60819,151.21,151.18,13.46027801]
[1726822380135,23.776884,151.2,151.15,21.02808875]
[1726822380427,23.776884,151.2,151.13,21.02808875]
[1726822380808,0.12549,151.19,151.13,21.02808875]
[1726822387538,0.12549,151.18,151.13,21.02808875]
[1726822387829,0.12549,151.18,151.09,21.02808875]
[1726822387830,0.12549,151.15,151.09,21.02808875]
[1726822388216,23.776884,151.14,151.09,21.02808875]
[1726822388624,30.393284,151.14,151.07,21.02808875]
[1726822388824,23.776884,151.12,151.07,21.02808875]
[1726822389835,15.0181,151.15,151.11,21.02808875]
[1726822390137,15.0181,151.15,151.12,1.32325245]
[1726822390441,15.0181,151.15,151.11,21.02808875]
[1726822390820,15.0181,151.15,151.09,21.02808875]
[1726822391141,0.25098,151.14,151.09,21.02808875]
[1726822391327,24.027864,151.14,151.09,21.02808875]
[1726822393340,15.0181,151.15,151.11,21.02808875]
[1726822394419,6.3677,151.18,151.13,21.02808875]
[1726822398240,15.59378,151.19,151.13,21.02808875]
[1726822398424,15.59378,151.19,151.15,21.02808875]
[1726822400733,6.8777881,151.22,151.15,21.02808875]
[1726822400926,6.8777881,151.22,151.17,21.02808875]
[1726822402348,24.027864,151.21,151.17,21.02808875]
[1726822405421,24.027864,151.21,151.15,21.02808875]
[1726822406223,30.641164,151.21,151.15,21.02808875]
[1726822406628,6.73929,151.2,151.15,21.02808875]
[1726822406833,0.25098,151.19,151.13,21.02808875]
[1726822408049,24.027864,151.19,151.13,21.02808875]
[1726822409033,0.12549,151.18,151.13,21.02808875]
[1726822409753,0.12549,151.18,151.11,21.02808875]
[1726822409754,24.027864,151.17,151.11,21.02808875]
[1726822410052,0.37647,151.18,151.13,21.02808875]
[1726822410353,24.153354,151.18,151.13,21.02808875]
[1726822411951,24.153354,151.18,151.15,13.46114025]
[1726822412329,0.37647,151.18,151.15,13.46114025]
[1726822413767,0.37647,151.18,151.13,13.46114025]
[1726822413940,23.776884,151.17,151.13,13.46114025]
[1726822414331,24.153354,151.18,151.13,13.46114025]
[1726822414857,24.153354,151.18,151.15,13.46114025]
[1726822418049,24.153354,151.18,151.12,21.03569744]
[1726822420561,24.027864,151.16,151.1,21.03569744]
[1726822423466,23.902374,151.16,151.12,21.03569744]
[1726822426574,0.25098,151.15,151.04,16.7380161]
[1726822426755,23.776884,151.12,151.04,16.7380161]
[1726822426939,23.776884,151.12,151.06,21.28928554]
[1726822427445,0.12549,151.12,151.06,21.28928554]
[1726822428850,0.37647,151.12,151.06,21.28928554]
[1726822429357,23.776884,151.11,151.06,21.28928554]
[1726822430345,0.12549,151.09,151.06,0.2535881]
[1726822430963,23.902374,151.09,151.06,0.2535881]
[1726822432670,0.25098,151.08,151.06,0.2535881]
[1726822432847,0.12549,151.07,151.06,0.2535881]
[1726822435471,6.4214,151.11,151.06,0.2535881]
[1726822435980,6.6181,151.1,151.06,0.2535881]
[1726822436871,24.153354,151.09,151.06,0.2535881]
[1726822438269,24.153354,151.09,151.06,6.8733881]
[1726822438457,0.37647,151.09,151.06,0.2535881]
[1726822440076,6.99507,151.09,151.06,0.2535881]
[1726822440256,0.12549,151.07,151.06,0.2535881]
[1726822440449,0.37647,151.07,151.06,0.2535881]
[1726822441267,0.25098,151.07,151.06,0.2535881]
[1726822443956,0.12549,151.07,151.06,0.2535881]
[1726822444352,23.776884,151.08,151.06,6.8733881]
[1726822444551,0.12549,151.08,151.06,6.8733881]
[1726822445569,0.12549,151.08,151.06,0.2535881]
[1726822447654,0.12549,151.08,151.06,6.8732881]
[1726822448179,0.12549,151.08,151.06,20.3540086]
[1726822449281,0.25098,151.09,151.07,20.1001205]
[1726822449578,0.12549,151.11,151.09,6.6183]
[1726822449777,16.4016,151.12,151.09,20.0990205]
[1726822450470,6.6164,151.14,151.1,13.4807205]
[1726822451975,6.4714,151.15,151.13,13.4807205]
[1726822452174,16.3573,151.16,151.14,13.4807205]
[1726822453368,0.12549,151.15,151.14,13.4807205]
[1726822454381,23.776884,151.15,151.14,13.4807205]
[1726822462265,23.776884,151.15,151.07,15.2131]
[1726822462591,23.776884,151.16,151.12,13.4807205]
[1726822462888,0.12549,151.16,151.14,13.4807205]
[1726822468090,24.027864,151.17,151.14,13.4807205]
[1726822471076,0.12549,151.16,151.07,15.2131]
[1726822471279,0.12549,151.16,151.12,13.4807205]
[1726822471482,6.74099,151.16,151.12,13.4807205]
[1726822471882,24.027864,151.15,151.12,13.4807205]
[1726822475188,21.603,151.2,151.07,15.2131]
[1726822475189,20.0,151.19,151.14,13.4807205]
[1726822475380,15.5196,151.2,151.11,6.1611]
[1726822475381,15.5196,151.2,151.16,13.4807205]
[1726822476380,0.12549,151.18,151.16,13.4807205]
[1726822476781,23.776884,151.19,151.16,13.4807205]
[1726822477492,0.12549,151.19,151.16,13.4807205]
[1726822478591,23.776884,151.2,151.16,13.4807205]
[1726822478975,0.12549,151.19,151.16,13.4807205]
[1726822481997,23.776884,151.18,151.12,15.93]
[1726822482181,23.776884,151.18,151.14,13.4807205]
[1726822483278,0.25098,151.17,151.14,13.4807205]
[1726822483591,6.86608,151.17,151.12,13.4807205]
[1726822483897,23.776884,151.16,151.12,13.4807205]
[1726822485402,24.027864,151.17,151.12,13.4807205]
[1726822487482,0.12549,151.16,151.08,15.7559]
[1726822487680,0.12549,151.14,151.07,13.4807205]
[1726822487885,24.027864,151.11,151.07,13.4807205]
[1726822488998,0.25098,151.11,151.07,13.4807205]
[1726822493589,0.25098,151.11,151.08,13.4807205]
[1726822495205,0.12549,151.08,151.06,0.2535881]
[1726822502889,0.12549,151.09,151.07,6.6193]
[1726822503097,24.027864,151.1,151.07,6.6193]
[1726822503423,0.25098,151.1,151.07,6.6193]
[1726822504728,6.86948,151.1,151.06,6.8733881]
[1726822504900,0.25098,151.1,151.06,6.8733881]
[1726822507696,0.25098,151.1,151.07,6.6194]
[1726822507906,0.12549,151.1,151.07,13.4807205]
[1726822508113,15.4712,151.13,151.08,13.4807205]
[1726822508416,6.6172,151.12,151.06,0.2535881]
[1726822508712,6.6172,151.12,151.07,13.4807205]
[1726822508896,15.4712,151.13,151.08,6.6189]
[1726822508897,22.088,151.13,151.08,6.6189]
[1726822509294,24.153354,151.12,151.08,6.6189]
[1726822512220,24.153354,151.12,151.07,13.4807205]
[1726822512802,0.12549,151.13,151.09,13.4807205]
[1726822513117,24.153354,151.13,151.09,13.4807205]
[1726822514102,30.770154,151.13,151.08,13.4807205]
[1726822515213,24.153354,151.11,151.06,0.2535881]
[1726822515404,24.153354,151.11,151.07,13.4807205]
[1726822516314,24.153354,151.11,151.06,0.2535881]
[1726822516496,24.153354,151.11,151.07,13.4807205]
[1726822517625,30.771154,151.11,151.06,13.7343086]
[1726822518599,6.6181,151.1,151.06,0.2535881]
[1726822518806,24.153354,151.09,151.06,0.2535881]
[1726822519217,30.771954,151.09,151.06,0.2535881]
[1726822529913,6.6191,151.08,151.06,0.2535881]
[1726822530118,30.772754,151.07,151.06,0.2535881]
[1726822533426,80.7634745,151.07,151.06,0.2535881]
[1726822534118,67.282754,151.07,151.06,0.2535881]
[1726822534542,80.7634745,151.07,151.06,0.2535881]
[1726822535943,67.282754,151.07,151.06,0.2535881]
[1726822538724,93.375954,151.07,151.06,0.2535881]
[1726822541938,106.8566745,151.07,151.06,0.2535881]
[1726822544635,106.8566745,151.07,151.04,0.0731161]
[1726822544636,70.663654,151.05,151.04,0.0731161]
[1726822544845,84.1443745,151.05,151.04,0.0731161]
[1726822546834,64.2543745,151.05,151.04,0.0731161]
[1726822548753,84.1443745,151.05,151.04,0.0731161]
[1726822548956,64.2543745,151.05,151.04,0.0731161]
[1726822550555,26.6203,151.05,151.04,0.0731161]
[1726822552442,6.6199,151.06,151.04,0.0731161]
[1726822553860,0.25098,151.05,151.04,0.0731161]
[1726822554467,24.153354,151.05,151.04,0.0731161]
[1726822557664,30.773654,151.05,151.04,0.0731161]
[1726822561459,24.153354,151.05,151.04,0.0731161]
[1726822561845,23.776884,151.05,151.04,13.5538366]
[1726822562045,16.5427,151.13,151.05,6.6202]
[1726822562349,30.85589764,151.15,151.1,20.0988205]
[1726822562350,6.6224,151.15,151.1,20.0988205]
[1726822562545,13.7343086,151.17,151.1,13.4807205]
[1726822562751,20.6536979,151.17,151.1,13.4807205]
[1726822562960,6.6165,151.14,151.1,13.4807205]
[1726822563467,13.7343086,151.17,151.09,13.4807205]
[1726822563674,6.6167,151.14,151.1,13.4807205]
[1726822563973,6.616,151.15,151.1,13.4807205]
[1726822564175,30.769754,151.14,151.1,13.4807205]
[1726822564469,6.6168,151.13,151.09,13.4807205]
[1726822564846,24.153354,151.12,151.09,13.4807205]
[1726822565157,30.770654,151.12,151.05,6.5988]
[1726822565389,24.153354,151.1,151.05,20.0795205]
[1726822566264,24.153354,151.1,151.08,13.4807205]
[1726822566265,0.25098,151.1,151.08,13.4807205]
[1726822570676,0.12549,151.1,151.08,13.4807205]
[1726822573459,0.12549,151.1,151.09,13.4807205]
[1726822573667,0.12549,151.1,151.08,13.4807205]
[1726822576674,0.12549,151.1,151.05,6.5988]
[1726822576975,0.12549,151.1,151.08,13.4807205]
[1726822579485,23.776884,151.11,151.08,13.4807205]
[1726822586166,23.776884,151.11,151.1,13.4807205]
[1726822586475,0.12549,151.14,151.1,13.4807205]
[1726822586689,23.902374,151.15,151.12,13.4807205]
[1726822587897,0.25098,151.14,151.12,13.4807205]
[1726822588091,0.25098,151.14,151.1,13.4807205]
[1726822593073,0.25098,151.14,151.05,6.5988]
[1726822593397,0.25098,151.14,151.11,13.4807205]
[1726822606993,0.12549,151.09,151.04,15.2289161]
[1726822607306,0.12549,151.09,151.06,13.4807205]
[1726822608306,0.12549,151.09,151.06,20.1002205]
[1726822609209,0.12549,151.09,151.07,6.6191]
[1726822609419,24.027864,151.1,151.08,20.0996205]
[1726822609704,24.027864,151.1,151.09,13.4807205]
[1726822610698,0.12549,151.09,151.04,0.0731161]
[1726822610899,0.12549,151.09,151.05,13.4807205]
[1726822611104,0.12549,151.09,151.04,0.0731161]
[1726822611314,0.37647,151.06,151.04,0.0731161]
[1726822611491,24.153354,151.06,151.04,0.0731161]
[1726822615905,0.37647,151.06,151.04,0.0731161]
[1726822616503,0.12549,151.06,151.05,20.1010205]
[1726822616709,23.776884,151.07,151.05,20.1010205]
[1726822616710,15.6329,151.09,151.05,20.1010205]
[1726822617003,6.6177,151.11,151.06,6.6197]
[1726822617596,6.6181,151.1,151.06,6.6197]
[1726822618522,24.153354,151.09,151.06,6.6197]
[1726822620522,24.153354,151.09,151.04,6.6935161]
[1726822620523,30.771954,151.09,151.04,6.6935161]
[1726822620825,30.771954,151.09,151.04,20.1742366]
[1726822621813,30.771954,151.09,151.05,6.6202]
[1726822623522,24.153354,151.09,151.06,6.6198]
[1726822623905,22.7824,151.13,151.08,13.4807205]
[1726822624125,16.2156,151.13,151.09,6.6185]
[1726822624424,6.6185,151.1,151.05,20.1006205]
[1726822625027,6.6176,151.11,151.05,13.4807205]
[1726822625201,0.25098,151.1,151.07,13.4807205]
[1726822630209,0.25098,151.1,151.07,20.0997205]
[1726822631422,0.25098,151.08,151.05,13.4807205]
[1726822631726,0.25098,151.08,151.05,20.1006205]
[1726822631910,0.25098,151.08,151.06,6.6197]
[1726822633922,0.12549,151.08,151.06,6.6197]
[1726822634110,0.12549,151.08,151.07,6.6194]
[1726822634429,0.12549,151.09,151.07,6.6194]
[1726822636129,24.027864,151.1,151.07,6.6194]
[1726822636327,0.12549,151.09,151.07,6.6194]
[1726822643716,0.12549,151.09,151.06,6.6197]
[1726822644037,0.12549,151.09,151.06,20.1004205]
[1726822644538,0.12549,151.09,151.07,6.6194]
[1726822648642,0.12549,151.09,151.06,13.4807205]
[1726822648643,0.12549,151.09,151.06,6.6197]
[1726822651326,0.12549,151.09,151.07,6.6193]
[1726822652033,0.12549,151.09,151.05,13.4807205]
[1726822657041,0.12549,151.09,151.04,0.0731161]
[1726822657248,6.6203,151.05,151.04,0.0731161]
[1726822657546,30.773654,151.05,151.04,0.0731161]
[1726822657729,80.1064745,151.05,151.04,0.0731161]
[1726822657936,50.774554,151.03,151.02,0.2535881]
[1726822658126,64.2552745,151.03,151.02,0.2535881]
[1726822660852,50.774554,151.03,151.02,0.2535881]
[1726822661945,15.8521,151.05,151.02,0.2535881]
[1726822662244,29.3328205,151.05,151.02,0.2535881]
[1726822663232,6.6212,151.03,151.02,0.2535881]
[1726822663436,30.774554,151.03,151.02,0.2535881]
[1726822665154,24.153354,151.03,151.02,0.2535881]
[1726822671238,30.774554,151.03,151.02,0.2535881]
[1726822676158,24.153354,151.03,151.02,0.2535881]
[1726822676662,30.774554,151.03,151.02,0.2535881]
[1726822677954,24.153354,151.03,151.02,0.2535881]
[1726822680266,30.774554,151.03,151.02,0.2535881]
[1726822681438,24.153354,151.03,151.02,0.2535881]
[1726822682740,30.774554,151.03,151.02,0.2535881]
[1726822684846,24.153354,151.03,151.02,0.2535881]
[1726822688069,30.774554,151.03,151.02,0.2535881]
[1726822689068,64.2552745,151.03,151.02,0.2535881]
[1726822689261,64.2552745,151.03,151.02,8.81e-05]
[1726822689565,64.2552745,151.03,150.97,0.3604687]
[1726822689566,30.776654,150.98,150.97,0.3604687]
[1726822689764,44.2573745,150.98,150.97,0.3604687]
[1726822691163,30.776654,150.98,150.97,0.3604687]
[1726822693646,39.89,151.03,150.97,0.3604687]
[1726822693647,31.9627,151.04,150.97,0.3604687]
[1726822693961,6.6221,151.01,150.97,0.3604687]
[1726822694458,6.6225,151.0,150.97,0.3604687]
[1726822695163,26.622,151.02,150.97,0.3604687]
[1726822695370,30.775454,151.01,150.97,0.3604687]
[1726822696755,6.92445485,151.05,150.99,13.4807205]
[1726822696959,30.0297205,151.07,150.99,13.4807205]
[1726822697949,6.6219,151.02,150.98,13.4807205]
[1726822698472,24.153354,151.01,150.98,13.4807205]
[1726822699467,0.37647,151.01,150.98,13.4807205]
[1726822700764,0.12549,151.01,151.0,13.4807205]
[1726822702271,13.4807205,151.11,151.0,13.4807205]
[1726822702454,13.4807205,151.11,150.97,0.3604687]
[1726822702455,6.619,151.08,151.04,13.4807205]
[1726822702655,6.6186,151.09,151.04,13.4807205]
[1726822702853,16.7960881,151.13,151.06,13.4807205]
[1726822704272,6.6181,151.1,151.06,13.4807205]
[1726822705246,6.6181,151.1,151.04,13.4807205]
[1726822706361,24.153354,151.09,151.04,13.4807205]
[1726822708575,24.153354,151.09,151.06,13.4807205]
[1726822709352,24.153354,151.09,151.02,15.9634]
[1726822709667,30.771954,151.09,151.04,13.4807205]
[1726822711174,0.12549,151.09,151.06,13.4807205]
[1726822711367,0.25098,151.1,151.06,13.4807205]
[1726822712377,24.027864,151.1,151.06,13.4807205]
[1726822715766,0.12549,151.09,151.06,13.4807205]
[1726822718865,23.902374,151.1,151.08,13.4807205]
[1726822719087,0.2535881,151.13,151.08,13.4807205]
[1726822719088,6.8703881,151.13,151.08,13.4807205]
[1726822719393,6.8703881,151.13,150.97,0.3604687]
[1726822719394,0.2535881,151.13,151.1,13.4807205]
[1726822720879,0.12549,151.12,151.1,13.4807205]
[1726822727772,24.153354,151.12,151.08,13.4807205]
[1726822728287,23.776884,151.12,151.11,13.4807205]
[1726822728489,0.2535881,151.13,151.11,22.02450969]
[1726822728668,0.2535881,151.17,151.12,8.54378919]
[1726822728876,0.2535881,151.17,151.16,13.4807205]
[1726822732680,0.5045681,151.17,151.16,13.4807205]
[1726822732880,24.2814521,151.17,151.16,13.4807205]
[1726822733590,24.2814521,151.17,151.15,13.4807205]
[1726822733800,24.2814521,151.17,151.13,16.4535]
[1726822734093,24.2814521,151.17,151.14,13.4807205]
[1726822736100,24.2814521,151.17,151.13,16.4535]
[1726822736296,23.902374,151.16,151.1,6.03]
[1726822736497,23.902374,151.16,151.09,15.743]
[1726822736498,0.12549,151.14,151.09,15.743]
[1726822736676,0.12549,151.14,151.1,13.4807205]
[1726822737486,0.25098,151.13,151.1,13.4807205]
[1726822738378,0.12549,151.12,151.06,6.3535]
[1726822738576,0.12549,151.12,151.07,13.4807205]
[1726822740303,0.25098,151.13,151.09,13.4807205]
[1726822740476,24.153354,151.15,151.09,13.4807205]
[1726822742997,30.769254,151.15,151.09,13.4807205]
[1726822744100,24.153354,151.15,151.11,13.4807205]
[1726822750108,6.99237,151.15,151.11,13.4807205]
[1726822750523,0.12549,151.13,151.11,13.4807205]
[1726822750712,0.12549,151.13,151.09,13.4807205]
[1726822752796,0.12549,151.13,151.1,13.4807205]
[1726822756487,0.12549,151.16,151.12,13.4807205]
[1726822756714,0.12549,151.16,151.14,13.4807205]
[1726822756903,0.2535881,151.17,151.14,13.4807205]
[1726822759293,24.0304721,151.17,151.14,13.4807205]
[1726822761113,0.2535881,151.17,151.14,13.4807205]
[1726822765514,0.37647,151.16,151.08,8.54378919]
[1726822765817,0.12549,151.13,151.06,6.3535]
[1726822766025,23.776884,151.11,151.05,13.4807205]
[1726822766203,0.12549,151.1,151.05,13.4807205]
[1726822769919,0.12549,151.1,151.04,15.2679]
[1726822770122,0.12549,151.1,151.05,13.4807205]
[1726822772322,0.12549,151.1,151.07,13.4807205]
[1726822775429,23.776884,151.11,151.07,13.4807205]
[1726822775641,23.902374,151.12,151.09,13.4807205]
[1726822775923,23.902374,151.12,151.04,8.54378919]
[1726822776228,23.902374,151.12,151.07,13.4807205]
[1726822781231,13.6062105,151.1,151.02,0.2535881]
[1726822781412,0.12549,151.08,151.02,0.2535881]
[1726822781615,23.902374,151.06,151.02,0.2535881]
[1726822781914,0.12549,151.05,151.02,0.2535881]
[1726822784730,15.90509,151.07,151.04,13.4807205]
[1726822785218,15.90509,151.07,151.02,13.7343086]
[1726822785415,15.90509,151.07,151.04,13.4807205]
[1726822786940,15.90509,151.07,151.02,0.2535881]
[1726822787316,15.90509,151.07,151.03,13.4807205]
[1726822794014,15.90509,151.07,151.02,0.2535881]
[1726822794228,15.90509,151.07,151.03,13.4807205]
[1726822796240,24.027864,151.06,151.02,0.2535881]
[1726822796417,24.027864,151.06,151.02,13.7343086]
[1726822796817,23.902374,151.06,151.02,13.7343086]
[1726822799617,30.522274,151.06,151.02,0.2535881]
[1726822799818,23.902374,151.04,151.02,0.2535881]
[1726822803322,23.776884,151.05,151.02,0.2535881]
[1726822803527,24.027864,151.06,151.02,0.2535881]
[1726822805725,30.647764,151.06,151.02,0.2535881]
[1726822805925,0.12549,151.05,151.02,0.2535881]
[1726822806141,0.25098,151.05,151.02,0.2535881]
[1726822806452,0.12549,151.04,151.02,0.2535881]
[1726822806623,23.776884,151.06,151.02,0.2535881]
[1726822806829,0.12549,151.05,151.02,0.2535881]
[1726822808744,15.7796,151.07,151.02,0.2535881]
[1726822809140,15.7796,151.07,151.04,13.4807205]
[1726822810432,0.12549,151.06,151.04,13.4807205]
[1726822810654,23.776884,151.07,151.04,13.4807205]
[1726822810828,6.6187,151.09,151.04,13.4807205]
[1726822810829,23.902374,151.08,151.04,13.4807205]
[1726822811152,0.12549,151.08,151.04,13.4807205]
[1726822811349,0.25098,151.08,151.04,13.4807205]
[1726822811532,0.25098,151.08,151.03,13.4807205]
[1726822812853,0.12549,151.08,151.05,13.4807205]
[1726822813233,0.25098,151.1,151.07,13.4807205]
[1726822813644,22.1539,151.11,151.02,0.2535881]
[1726822813958,15.5362,151.11,151.06,13.4807205]
[1726822814456,6.6171,151.13,151.08,13.4807205]
[1726822815638,29.2694,151.15,151.08,13.4807205]
[1726822815945,22.7535,151.15,151.1,13.4807205]
[1726822817441,0.12549,151.13,151.1,13.4807205]
[1726822818548,0.12549,151.13,151.08,13.4807205]
[1726822821159,0.12549,151.13,151.1,13.4807205]
[1726822823463,30.644364,151.14,151.1,13.4807205]
[1726822823673,24.027864,151.14,151.1,13.4807205]
[1726822823963,6.6155,151.16,151.12,13.4807205]
[1726822824164,6.8686881,151.17,151.12,13.4807205]
[1726822825445,23.902374,151.16,151.12,13.4807205]
[1726822826062,23.902374,151.16,151.07,15.5993]
[1726822826063,0.12549,151.14,151.09,13.4807205]
[1726822826237,0.12549,151.13,151.09,13.4807205]
[1726822826443,23.776884,151.14,151.09,13.4807205]
[1726822827845,23.776884,151.14,151.11,13.4807205]
[1726822828951,0.25098,151.13,151.07,15.5993]
[1726822829270,0.12549,151.13,151.1,13.4807205]
[1726822830850,0.12549,151.13,151.07,15.5993]
[1726822832152,23.776884,151.14,151.07,15.5993]
[1726822832355,23.902374,151.15,151.07,15.5993]
[1726822833075,23.776884,151.15,151.07,15.5993]
[1726822833260,23.776884,151.15,151.08,20.0]
[1726822833467,23.902374,151.16,151.08,20.0]
[1726822833856,0.12549,151.15,151.08,20.0]
[1726822837780,0.12549,151.15,151.09,6.007]
[1726822848879,6.8689881,151.17,151.09,6.007]
[1726822848880,0.2535881,151.17,151.1,29.51955704]
[1726822849056,0.2535881,151.17,151.1,28.19632808]
[1726822851971,0.2535881,151.17,151.1,20.0]
[1726822852557,0.2535881,151.17,151.11,15.1629]
[1726822854484,0.2535881,151.17,151.12,20.0]
[1726822858884,0.2535881,151.17,151.13,8.19632808]
[1726822859089,0.2535881,151.17,151.12,20.0]
[1726822861386,0.25098,151.16,151.11,15.1629]
[1726822861691,23.902374,151.13,151.07,16.2489]
[1726822861896,0.12549,151.12,151.07,16.2489]
[1726822865488,6.6159,151.15,151.07,24.44522808]
[1726822865672,6.6155,151.16,151.07,24.44522808]
[1726822866166,6.6155,151.16,151.08,20.0]
[1726822866782,0.12549,151.15,151.08,20.0]
[1726822867495,24.027864,151.15,151.08,20.0]
[1726822868588,0.12549,151.14,151.08,20.0]
[1726822868784,24.027864,151.13,151.08,20.0]
[1726822869372,24.027864,151.13,151.07,16.2489]
[1726822869873,23.776884,151.11,151.06,20.0]
[1726822870395,0.12549,151.1,151.03,15.8079]
[1726822870992,0.12549,151.1,151.03,24.00422808]
[1726822871801,0.12549,151.1,151.04,20.0]
[1726822873086,23.902374,151.12,151.04,28.19632808]
[1726822873400,23.902374,151.12,151.05,9.52005143]
[1726822873897,23.902374,151.12,151.05,8.19632808]
[1726822874474,23.902374,151.12,151.04,20.0]
[1726822874692,0.12549,151.11,151.04,20.0]
[1726822877397,6.86868,151.11,151.04,20.0]
[1726822877607,23.902374,151.1,151.04,20.0]
[1726822878871,0.12549,151.09,151.04,20.0]
[1726822881782,0.12549,151.08,151.02,20.2535881]
[1726822882197,6.74479,151.08,151.02,20.2535881]
[1726822882372,0.12549,151.05,151.02,0.2535881]
[1726822884688,6.74589,151.05,151.02,0.2535881]
[1726822884888,24.153354,151.03,151.02,0.2535881]
[1726822885094,30.774554,151.03,151.02,0.2535881]
[1726822890306,47.106354,151.03,151.02,0.2535881]
[1726822900316,67.106354,151.03,151.02,0.2535881]
[1726822914307,69.760513,151.03,151.02,0.2535881]
[1726822916341,45.732649,151.03,151.02,0.2535881]
[1726822916636,43.07849,151.03,151.02,0.2535881]
[1726822917837,67.106354,151.03,151.02,0.2535881]
[1726822925245,50.774554,151.03,151.02,0.2535881]
[1726822928133,26.87218,151.03,151.02,0.2535881]
[1726822928646,26.74669,151.03,151.02,0.2535881]
[1726822928821,26.6212,151.03,151.02,0.2535881]
[1726822929543,50.523574,151.03,151.02,0.2535881]
[1726822930425,50.774554,151.03,151.02,0.2535881]
[1726822933822,44.153354,151.03,151.02,0.2535881]
[1726822934021,50.774554,151.03,151.02,0.2535881]
[1726822934829,6.6208,151.04,151.02,0.2535881]
[1726822935824,6.6204,151.05,151.02,0.2535881]
[1726822936143,24.153354,151.04,151.02,0.2535881]
[1726822936846,6.6199,151.06,151.02,0.2535881]
[1726822937057,6.6198,151.07,151.02,0.2535881]
[1726822937556,6.6199,151.06,151.02,0.2535881]
[1726822938459,24.153354,151.05,151.02,0.2535881]
[1726822938958,30.773654,151.05,151.02,0.2535881]
[1726822939159,24.153354,151.05,151.02,0.2535881]
[1726822940062,6.6208,151.04,151.02,0.2535881]
[1726822940239,24.153354,151.03,151.02,0.2535881]
[1726822940447,23.902374,151.03,151.02,0.2535881]
[1726822941842,0.12549,151.06,151.02,0.2535881]
[1726822942047,0.25098,151.06,151.02,0.2535881]
[1726822943561,0.12549,151.06,151.02,6.9154881]
[1726822944064,31.571,151.15,151.03,17.00069036]
[1726822944281,15.0308,151.15,151.03,15.6765]
[1726822944569,6.6167,151.14,151.04,20.0]
[1726822944735,6.6169,151.13,151.04,20.0]
[1726822945863,0.12549,151.12,151.04,20.0]
[1726822946355,0.12549,151.1,151.04,20.0]
[1726822946939,0.12549,151.09,151.04,20.0]